[Event "FIDE World Cup O12-A 2024"]
[Site "Batumi"]
[Date "2024.06.29"]
[Round "7.10"]
[White "Nanayakkara, Sanuk"]
[Black "Todua, Andria"]
[Result "1-0"]
[ECO "D74"]
[WhiteElo "1714"]
[BlackElo "1599"]
[Annotator "NA RC"]
[PlyCount "77"]
[EventDate "2024.06.23"]
[EventType "swiss"]
[EventCountry "GEO"]
[SourceTitle "playchess.com"]
[Source "ChessBase"]
[SourceQuality "1"]
[TimeControl "5400+30"]

1. Nf3 {[%emt 0:00:35]} Nf6 {[%emt 0:00:07]} 2. g3 {[%emt 0:00:04]} g6 {[%emt 0:00:03]} 3. Bg2 {[%emt 0:00:04]} Bg7 {[%emt 0:00:04]} 4. O-O {[%emt 0:00:05]} O-O {[%emt 0:00:04]} 5. c4 {[%emt 0:00:05]} d5 {[%emt 0:00:18]} 6. cxd5 {[%emt 0:00:17]} Nxd5 {[%emt 0:00:06]} 7. d4 {[%emt 0:00:10]} c6 {[%emt 0:02:18]} 8. Nc3 {[%emt 0:01:51]} Nxc3 {[%emt 0:06:15]} 9. bxc3 {[%emt 0:00:17]} Be6 {[%emt 0:00:35]} 10. e4 {[%emt 0:02:30]} Bg4 {[%emt 0:00:31]} 11. Ba3 {[%emt 0:01:57]} Qd7 {[%emt 0:06:26]} 12. Qb3 {[%emt 0:05:42]} Bxf3 {[%emt 0:01:15]} 13. Bxf3 {[%emt 0:00:14]} Na6 {[%emt 0:00:41]} 14. Be2 {[%emt 0:08:13]} Nc7 {[%emt 0:00:55]} 15. Rad1 {[%emt 0:07:01]} Nb5 {[%emt 0:07:23]} 16. Bb2 {[%emt 0:05:25]} Nd6 {[%emt 0:03:17]} 17. Bf3 {[%emt 0:02:46]} b5 {[%emt 0:04:31]} 18. Rfe1 {[%emt 0:09:22]} Rab8 {[%emt 0:01:48]} 19. Bc1 {[%emt 0:01:01]} Rb6 {[%emt 0:09:56]} 20. Ba3 {[%emt 0:06:38]} Rbb8 {[%emt 0:01:14]} 21. Bc5 {[%emt 0:04:32]} Nb7 {[%emt 0:00:58]} 22. e5 {[%emt 0:04:28]} Qc7 {[%emt 0:04:03]} 23. Bxa7 {[%emt 0:01:57]} Ra8 {[%emt 0:00:53]} 24. Bc5 {[%emt 0:00:06]} Nxc5 {[%emt 0:00:11]} 25. dxc5 {[%emt 0:00:09]} Bxe5 {[%emt 0:00:06]} 26. Bxc6 {[%emt 0:01:06]} Bxc3 {[%emt 0:05:07]} 27. Bxa8 {[%emt 0:01:41]} Bxe1 {[%emt 0:00:05]} 28. Bd5 {[%emt 0:00:16]} e6 {[%emt 0:05:16]} 29. Rxe1 {[%emt 0:12:16]} exd5 {[%emt 0:00:16]} 30. Qxd5 {[%emt 0:01:29]} Rc8 {[%emt 0:00:08]} 31. Rc1 {[%emt 0:23:43]} Qe7 {[%emt 0:00:59]} 32. c6 {[%emt 0:00:00]} Qa3 {[%emt 0:00:21]} 33. Rc5 {[%emt 0:00:00]} Qb2 {[%emt 0:08:13]} 34. c7 {[%emt 0:00:00]} Qb1+ {[%emt 0:01:14]} 35. Kg2 {[%emt 0:00:00]} Kg7 {[%emt 0:00:11]} 36. Qb7 {[%emt 0:00:00]} Qe1 {[%emt 0:02:01]} 37. Qxc8 {[%emt 0:00:00]} Qe4+ {[%emt 0:00:02]} 38. Kh3 {[%emt 0:00:00]} Qe2 {[%emt 0:00:44]} 39. Qb7 {[%emt 0:00:00]} 1-0

[Event "FIDE World Cup O12-A 2024"]
[Site "Batumi"]
[Date "2024.06.29"]
[Round "7.12"]
[White "Tavberidze, Alexandre"]
[Black "Lee, Daniel Joshua"]
[Result "1/2-1/2"]
[ECO "C50"]
[WhiteElo "1529"]
[BlackElo "1717"]
[Annotator "NA RC"]
[PlyCount "130"]
[EventDate "2024.06.23"]
[EventType "swiss"]
[EventCountry "GEO"]
[SourceTitle "playchess.com"]
[Source "ChessBase"]
[SourceQuality "1"]
[TimeControl "5400+30"]

1. e4 {[%emt 0:00:01]} e5 {[%emt 0:00:06]} 2. Nf3 {[%emt 0:00:07]} Nc6 {[%emt 0:00:05]} 3. Bc4 {[%emt 0:00:04]} Bc5 {[%emt 0:00:05]} 4. d3 {[%emt 0:00:07]} Nf6 {[%emt 0:00:04]} 5. O-O {[%emt 0:00:05]} d6 {[%emt 0:00:20]} 6. Bg5 {[%emt 0:00:29]} h6 {[%emt 0:00:19]} 7. Bh4 {[%emt 0:00:05]} g5 {[%emt 0:00:08]} 8. Bg3 {[%emt 0:00:04]} Bg4 {[%emt 0:03:10]} 9. Nbd2 {[%emt 0:02:26]} Qd7 {[%emt 0:01:13]} 10. c3 {[%emt 0:03:26]} O-O-O {[%emt 0:02:46]} 11. b4 {[%emt 0:01:42]} Bb6 {[%emt 0:01:05]} 12. Qb3 {[%emt 0:03:45]} Be6 {[%emt 0:10:17]} 13. Bxe6 {[%emt 0:03:57]} fxe6 {[%emt 0:00:04]} 14. Nc4 {[%emt 0:00:40]} h5 {[%emt 0:04:06]} 15. Nxb6+ {[%emt 0:05:13]} axb6 {[%emt 0:00:21]} 16. h4 {[%emt 0:01:58]} g4 {[%emt 0:11:52]} 17. Ng5 {[%emt 0:00:27]} d5 {[%emt 0:01:13]} 18. a4 {[%emt 0:12:08]} Kb8 {[%emt 0:07:12]} 19. Rfe1 {[%emt 0:06:10]} Rhe8 {[%emt 0:05:07]} 20. Rad1 {[%emt 0:08:16]} Nh7 {[%emt 0:04:56]} 21. Nxh7 {[%emt 0:03:03]} Qxh7 {[%emt 0:00:07]} 22. Qc2 {[%emt 0:01:26]} Qg7 {[%emt 0:07:09]} 23. b5 {[%emt 0:03:23]} Na5 {[%emt 0:02:11]} 24. Rd2 {[%emt 0:07:43]} d4 {[%emt 0:08:32]} 25. c4 {[%emt 0:01:16]} Rc8 {[%emt 0:07:30]} 26. Qb2 {[%emt 0:02:51]} Ka7 {[%emt 0:02:57]} 27. Rc1 {[%emt 0:04:46]} Qf6 {[%emt 0:06:21]} 28. Rdc2 {[%emt 0:02:34]} c5 {[%emt 0:06:24]} 29. bxc6 {[%emt 0:04:14]} bxc6 {[%emt 0:01:13]} 30. c5 {[%emt 0:01:04]} Rb8 {[%emt 0:01:41]} 31. cxb6+ {[%emt 0:02:17]} Rxb6 {[%emt 0:00:11]} 32. Qa3 {[%emt 0:00:59]} Qe7 {[%emt 0:01:32]} 33. Qxe7+ {[%emt 0:00:28]} Rxe7 {[%emt 0:00:07]} 34. Bxe5 {[%emt 0:00:05]} Nb3 {[%emt 0:00:34]} 35. Rb1 {[%emt 0:01:56]} c5 {[%emt 0:02:36]} 36. Rcb2 {[%emt 0:03:42]} Reb7 {[%emt 0:01:09]} 37. Bf6 {[%emt 0:01:09]} Ka6 {[%emt 0:02:06]} 38. f3 {[%emt 0:02:29]} gxf3 {[%emt 0:00:47]} 39. gxf3 {[%emt 0:13:25]} Rb4 {[%emt 0:01:32]} 40. Bg5 {[%emt 0:00:00]} Ka5 {[%emt 0:00:41]} 41. Ra2 {[%emt 0:00:00]} Rxa4 {[%emt 0:00:34]} 42. Bd8+ {[%emt 0:00:00]} Kb4 {[%emt 0:00:07]} 43. Rxa4+ {[%emt 0:00:00]} Kxa4 {[%emt 0:00:05]} 44. Rf1 {[%emt 0:00:00]} Kb4 {[%emt 0:00:22]} 45. f4 {[%emt 0:00:00]} Kc3 {[%emt 0:00:27]} 46. Rf3 {[%emt 0:00:00]} Nd2 {[%emt 0:00:24]} 47. Ba5+ {[%emt 0:00:00]} Kc2 {[%emt 0:00:12]} 48. Bxd2 {[%emt 0:00:00]} Kxd2 {[%emt 0:00:08]} 49. f5 {[%emt 0:00:00]} exf5 {[%emt 0:00:32]} 50. exf5 {[%emt 0:00:00]} Rf7 {[%emt 0:00:21]} 51. Kf2 {[%emt 0:00:00]} Rf6 {[%emt 0:00:14]} 52. Kg3 {[%emt 0:00:00]} Ke2 {[%emt 0:00:28]} 53. Kg2 {[%emt 0:00:00]} Ke1 {[%emt 0:00:27]} 54. Rf2 {[%emt 0:00:00]} c4 {[%emt 0:00:58]} 55. dxc4 {[%emt 0:00:41]} d3 {[%emt 0:00:06]} 56. Kg3 {[%emt 0:02:47]} d2 {[%emt 0:00:10]} 57. Rxd2 {[%emt 0:00:07]} Kxd2 {[%emt 0:00:08]} 58. Kf4 {[%emt 0:00:04]} Rc6 {[%emt 0:01:26]} 59. Kg5 {[%emt 0:00:07]} Rxc4 {[%emt 0:00:53]} 60. Kxh5 {[%emt 0:00:14]} Ke3 {[%emt 0:00:20]} 61. f6 {[%emt 0:00:11]} Kf4 {[%emt 0:00:43]} 62. Kg6 {[%emt 0:00:08]} Ke5 {[%emt 0:01:06]} 63. f7 {[%emt 0:00:07]} Rg4+ {[%emt 0:00:14]} 64. Kh5 {[%emt 0:00:35]} Rf4 {[%emt 0:00:05]} 65. Kg6 {[%emt 0:00:07]} Rg4+ {[%emt 0:00:08]} 1/2-1/2